bitfinex/quotes_SOLUSD_20250206
["timestamp","ask_amount","ask_price","bid_price","bid_amount"]
[1738827153238,30.063,203.12,203.08,14.5515566]
[1738827153239,0.063,203.12,203.08,14.5515566]
[1738827154044,0.063,203.12,203.11,0.37647]
[1738827154253,0.063,203.12,203.11,149.25207255]
[1738827154543,0.063,203.12,203.11,148.51380853]
[1738827155032,0.063,203.12,203.11,153.43720853]
[1738827156260,0.0001,203.14,203.13,34.78831853]
[1738827156443,14.5515566,203.27,203.16,0.12549]
[1738827156757,30.0,203.28,203.16,243.36874207]
[1738827156958,30.0,203.28,203.16,242.63067553]
[1738827157969,30.0,203.28,203.16,247.55287553]
[1738827158955,30.0,203.24,203.16,234.015537]
[1738827160055,0.0001,203.18,203.17,13.78831853]
[1738827160368,0.0001,203.18,203.17,14.52625809]
[1738827161837,0.0001,203.18,203.17,229.06803849]
[1738827162037,0.0001,203.18,203.17,214.9182504]
[1738827162654,0.0001,203.19,203.18,1.0]
[1738827162858,55.7985566,203.33,203.21,20.0]
[1738827163047,55.7985566,203.33,203.26,14.5515566]
[1738827163852,55.7985566,203.33,203.24,14.5515566]
[1738827165253,44.6145566,203.33,203.26,14.5515566]
[1738827165547,30.063,203.33,203.26,14.5515566]
[1738827166148,30.063,203.33,203.27,0.12549]
[1738827166343,30.063,203.33,203.27,5.04489]
[1738827167765,30.063,203.33,203.27,139.64489]
[1738827168843,30.0,203.29,203.27,134.6]
[1738827169045,14.5515566,203.28,203.19,4.9215]
[1738827169249,14.5515566,203.25,203.19,219.4632804]
[1738827169659,14.5515566,203.25,203.2,0.12549]
[1738827170142,14.5515566,203.27,203.2,5.04659]
[1738827170651,14.5515566,203.27,203.2,19.5981466]
[1738827173568,14.5515566,203.25,203.19,79.9417804]
[1738827173763,4.9196,203.27,203.19,79.9417804]
[1738827173764,44.5515566,203.23,203.19,79.9417804]
[1738827174473,14.5515566,203.25,203.19,79.9417804]
[1738827175487,14.5515566,203.27,203.2,0.12549]
[1738827175696,14.5515566,203.27,203.2,94.618827]
[1738827176253,14.5515566,203.27,203.2,79.9417804]
[1738827176762,30.0,203.25,203.2,79.9417804]
[1738827177599,14.5515566,203.27,203.2,79.9417804]
[1738827177600,4.9198,203.26,203.2,79.9417804]
[1738827177756,49.4711566,203.27,203.2,234.014437]
[1738827178266,44.5515566,203.27,203.2,234.014437]
[1738827179571,49.4711566,203.27,203.2,234.014437]
[1738827179861,49.4711566,203.27,203.2,219.4628804]
[1738827180074,49.4711566,203.27,203.2,214.5417804]
[1738827180386,30.0,203.24,203.2,214.5417804]
[1738827182476,34.9204,203.24,203.2,214.5417804]
[1738827182705,34.9204,203.24,203.16,154.0735566]
[1738827184292,34.9204,203.24,203.16,19.4735566]
[1738827184598,30.0,203.21,203.14,99.415837]
[1738827185720,34.921,203.21,203.14,99.415837]
[1738827185881,34.921,203.21,203.19,0.063]
[1738827187102,30.03,203.24,203.19,0.063]
[1738827192020,34.9503,203.24,203.19,0.063]
[1738827198038,30.0,203.21,203.19,0.063]
[1738827199228,34.921,203.21,203.19,0.063]
[1738827206154,9.30925497,203.2,203.19,0.063]
[1738827207129,22.7211035,203.2,203.19,0.063]
[1738827208430,59.95812338,203.2,203.19,0.063]
[1738827208612,64.87932338,203.2,203.19,0.063]
[1738827209036,65.61562338,203.2,203.19,0.063]
[1738827209933,66.74111338,203.2,203.19,0.063]
[1738827210120,39.30925497,203.14,203.11,79.9417804]
[1738827211237,9.30925497,203.16,203.11,79.9417804]
[1738827211434,50.0,203.17,203.11,79.9417804]
[1738827212326,54.922,203.17,203.11,79.9417804]
[1738827213334,50.0,203.17,203.11,89.25103537]
[1738827213539,39.30925497,203.2,203.12,9.30925497]
[1738827213727,34.9212,203.2,203.14,9.30925497]
[1738827214136,4.921,203.21,203.15,9.30925497]
[1738827215143,30.0,203.2,203.15,9.30925497]
[1738827215521,30.0,203.2,203.13,10.94555497]
[1738827215923,9.30925497,203.19,203.13,1.6363]
[1738827216634,14.5498213,203.19,203.13,1.6363]
[1738827216950,19.4714213,203.19,203.13,1.6363]
[1738827218341,30.0,203.17,203.13,1.6363]
[1738827219340,30.0,203.17,203.12,79.9417804]
[1738827220042,14.5498213,203.16,203.12,79.9417804]
[1738827220240,19.4722213,203.16,203.12,79.9417804]
[1738827220714,50.0,203.13,203.06,155.3770213]
[1738827221632,14.5498213,203.12,203.06,140.8272]
[1738827221815,19.4731213,203.12,203.11,0.063]
[1738827222427,30.0,203.04,202.98,0.063]
[1738827222746,44.5498213,203.04,202.98,0.063]
[1738827223138,14.5498213,203.02,202.98,0.063]
[1738827223439,30.0,203.01,202.98,0.063]
[1738827224329,29.8359426,203.0,202.98,0.063]
[1738827224519,13.41184853,202.99,202.98,0.063]
[1738827224721,13.53733853,202.99,202.98,0.063]
[1738827226042,18.33814853,202.99,202.98,0.063]
[1738827226535,20.71461853,202.99,202.98,0.0001]
[1738827228244,44.5498213,202.92,202.9,0.063]
[1738827229842,0.7363,202.96,202.9,0.063]
[1738827229843,44.5498213,202.96,202.9,0.063]
[1738827230048,14.5498213,202.98,202.91,14.5498213]
[1738827231546,19.4764213,202.98,202.91,14.5498213]
[1738827232051,30.0,202.96,202.9,229.1546017]
[1738827232260,30.0,202.96,202.9,94.5546017]
[1738827234425,30.0,202.96,202.91,14.5498213]
[1738827234659,30.0,202.96,202.92,14.5498213]
[1738827237954,30.0,202.96,202.91,14.5498213]
[1738827238556,30.0,202.96,202.9,94.5546017]
[1738827240255,30.0,202.96,202.91,14.5498213]
[1738827240465,34.9265,202.99,202.93,14.5498213]
[1738827240831,34.9265,202.99,202.92,14.5498213]
[1738827241032,49.4763213,202.99,202.92,14.5498213]
[1738827241234,14.5498213,202.98,202.91,14.5498213]
[1738827242149,30.0,202.95,202.91,94.4916017]
[1738827242454,30.0,202.95,202.91,79.9417804]
[1738827243132,30.0,202.86,202.85,0.03]
[1738827243327,30.0,202.82,202.75,14.5798213]
[1738827243828,30.0,202.79,202.75,0.03]
[1738827244248,49.4810213,202.79,202.75,0.03]
[1738827244672,44.5498213,202.79,202.75,0.03]
[1738827245132,30.0,202.79,202.75,0.03]
[1738827245527,30.7363,202.82,202.75,14.5798213]
[1738827245783,30.0,202.82,202.76,14.5498213]
[1738827246960,30.0,202.82,202.75,14.5798213]
[1738827248059,30.0,202.82,202.76,14.5498213]
[1738827248262,30.0,202.82,202.75,94.5216017]
[1738827248463,30.0,202.82,202.75,99.4537017]
[1738827248756,30.0,202.82,202.75,94.5216017]
[1738827248934,44.5498213,202.82,202.75,94.5216017]
[1738827249933,44.5498213,202.82,202.75,79.9717804]
[1738827250133,14.5498213,202.81,202.75,79.9717804]
[1738827250772,34.9304,202.82,202.75,79.9717804]
[1738827250773,44.5498213,202.79,202.75,79.9717804]
[1738827251470,44.5498213,202.76,202.75,0.03]
[1738827252336,49.4817213,202.76,202.75,0.03]
[1738827253662,49.4817213,202.76,202.73,0.02380538]
[1738827253961,14.5498213,202.75,202.73,0.02380538]
[1738827255663,19.4820213,202.75,202.73,0.02380538]
[1738827259980,19.4820213,202.75,202.7,62.88538425]
[1738827262372,14.5498213,202.74,202.7,62.88538425]
[1738827263568,19.4822213,202.74,202.7,62.88538425]
[1738827263875,30.0,202.73,202.7,62.88538425]
[1738827265910,30.0,202.73,202.67,67.84948425]
[1738827266090,30.0,202.7,202.67,0.03]
[1738827266393,44.5498213,202.7,202.67,0.03]
[1738827266599,30.0,202.7,202.67,0.03]
[1738827267272,49.4824213,202.73,202.67,0.03]
[1738827267792,17.15184853,202.75,202.67,0.03]
[1738827267793,44.5498213,202.7,202.67,0.03]
[1738827270209,44.5498213,202.7,202.64,62.44538425]
[1738827270702,30.0,202.7,202.64,76.99520555]
[1738827271895,30.0,202.67,202.64,62.44538425]
[1738827273509,30.0,202.67,202.61,143.95610523]
[1738827273816,44.29020523,202.67,202.6,73.38398948]
[1738827273990,30.0,202.63,202.58,9.35610523]
[1738827274882,30.0,202.66,202.6,9.35610523]
[1738827275603,39.35610523,202.66,202.59,9.35610523]
[1738827275831,30.0,202.63,202.59,9.35610523]
[1738827277289,30.0,202.66,202.6,9.35610523]
[1738827277487,30.0,202.62,202.6,9.35610523]
[1738827277712,30.0,202.62,202.58,9.35610523]
[1738827278115,30.0,202.62,202.59,9.35610523]
[1738827278289,43.41184853,202.65,202.59,9.35610523]
[1738827279100,30.0,202.62,202.57,9.35610523]
[1738827279415,3.72,202.64,202.58,9.35610523]
[1738827279789,30.0,202.62,202.58,9.35610523]
[1738827282510,30.0,202.62,202.58,9.41910523]
[1738827282885,3.72,202.64,202.59,9.35610523]
[1738827283095,3.72,202.64,202.61,9.35610523]
[1738827283290,3.72,202.64,202.6,9.35610523]
[1738827284206,30.0,202.65,202.6,9.35610523]
[1738827284387,30.0,202.65,202.61,9.35610523]
[1738827284587,30.0,202.65,202.6,9.35610523]
[1738827285222,30.0,202.61,202.58,0.063]
[1738827286292,30.03,202.67,202.6,9.35610523]
[1738827286506,30.03,202.67,202.61,9.35610523]
[1738827287805,30.03,202.67,202.62,9.35610523]
[1738827287993,30.03,202.67,202.61,14.29160523]
[1738827288198,30.03,202.67,202.62,9.35610523]
[1738827288411,30.03,202.67,202.61,14.29160523]
[1738827288608,30.03,202.67,202.61,9.35610523]
[1738827288908,30.03,202.67,202.63,9.35610523]
[1738827289824,30.03,202.67,202.62,9.35610523]
[1738827290600,30.0,202.63,202.59,9.35610523]
[1738827290800,30.0,202.63,202.58,134.663]
[1738827292609,30.0,202.63,202.58,0.063]
[1738827294813,30.0,202.63,202.58,9.41910523]
[1738827295014,30.0,202.63,202.58,0.063]
[1738827296718,30.0,202.63,202.58,9.41910523]
[1738827297021,30.0,202.63,202.58,14.35530523]
[1738827297818,30.0,202.63,202.59,9.35610523]
[1738827298021,30.0,202.6,202.59,9.35610523]
[1738827298334,30.0,202.6,202.58,9.41910523]
[1738827298503,30.0,202.6,202.58,14.35530523]
[1738827298939,30.0,202.6,202.59,9.35610523]
[1738827299140,0.03,202.67,202.59,46.78052615]
[1738827299428,0.03,202.67,202.63,9.35610523]
[1738827299931,30.0,202.65,202.61,9.35610523]
[1738827301328,0.03,202.67,202.63,9.35610523]
[1738827301497,0.03,202.67,202.65,9.35610523]
[1738827302416,0.03,202.67,202.66,0.12549]
[1738827302616,0.03,202.67,202.66,1.24190619]
[1738827302821,0.03,202.67,202.66,136.84190619]
[1738827303026,7.6806738,202.73,202.72,9.35610523]
[1738827303338,7.6806738,202.73,202.72,14.28900523]
[1738827303705,7.6806738,202.73,202.72,9.35610523]
[1738827305524,0.03,202.75,202.72,9.35610523]
[1738827312919,0.03,202.75,202.72,14.28900523]
[1738827313243,0.03,202.75,202.74,9.35610523]
[1738827315332,0.03,202.75,202.73,14.28870523]
[1738827316445,0.03,202.75,202.73,9.35610523]
[1738827316642,0.03,202.75,202.72,14.28900523]
[1738827317844,0.03,202.75,202.74,9.35610523]
[1738827320059,0.03,202.75,202.73,9.35610523]
[1738827320446,30.03,202.75,202.72,9.35610523]
[1738827320753,30.03,202.75,202.7,76.73458948]
[1738827320947,30.03,202.75,202.71,9.35610523]
[1738827322228,30.03,202.75,202.7,71.80148948]
[1738827322953,30.0,202.72,202.7,9.35610523]
[1738827324757,0.03,202.75,202.7,9.35610523]
[1738827324758,30.03,202.75,202.7,9.35610523]
[1738827325061,30.03,202.75,202.73,9.35610523]
[1738827326164,0.03,202.75,202.73,9.35610523]
[1738827326663,0.03,202.75,202.74,9.35610523]
[1738827329070,0.03,202.75,202.74,14.28850523]
[1738827330462,0.03,202.75,202.73,9.35610523]
[1738827330878,0.03,202.75,202.74,9.35610523]
[1738827332151,0.03,202.75,202.72,9.35610523]
[1738827333247,0.03,202.75,202.72,14.28890523]
[1738827337070,0.03,202.75,202.74,9.35610523]
[1738827337274,0.03,202.75,202.74,9.48159523]
[1738827337443,0.03,202.75,202.74,206.77795948]
[1738827338956,0.03,202.75,202.74,211.71035948]
[1738827340882,0.03,202.75,202.74,211.45937948]
[1738827341175,0.03,202.75,202.74,197.04538425]
[1738827342177,0.03,202.75,202.74,206.40148948]
[1738827342855,0.03,202.75,202.74,211.33388948]
[1738827343185,0.03,202.75,202.74,206.40148948]
[1738827344056,0.03,202.75,202.74,197.04538425]
[1738827344684,0.03,202.75,202.71,9.35610523]
[1738827344975,30.03,202.75,202.69,9.35610523]
[1738827345350,30.03,202.75,202.67,197.10838425]
[1738827345351,9.35610523,202.74,202.68,4.9338]
[1738827345555,39.35610523,202.72,202.67,197.10838425]
[1738827345767,30.0,202.72,202.67,0.063]
[1738827345974,30.0,202.72,202.67,9.41910523]
[1738827349085,13.41184853,202.71,202.67,0.063]
[1738827349262,30.0,202.68,202.67,0.063]
[1738827351275,34.9338,202.68,202.67,0.063]
[1738827351583,44.28990523,202.68,202.67,0.063]
[1738827353369,57.70175376,202.68,202.67,0.063]
[1738827360777,48.34564853,202.68,202.67,0.063]
[1738827361101,57.70175376,202.68,202.67,0.063]
[1738827362298,58.43805376,202.68,202.67,0.063]
[1738827362969,57.70175376,202.68,202.67,0.063]
[1738827375814,58.98273376,202.68,202.67,0.0001]
[1738827375984,30.0,202.54,202.53,0.03]
[1738827376611,44.14814853,202.54,202.53,0.03]
[1738827376911,45.14814853,202.54,202.53,0.0001]
[1738827377090,6.0705,202.53,202.52,0.063]
[1738827377292,60.21422657,202.53,202.52,0.063]
[1738827377487,22.78980565,202.53,202.52,0.063]
[1738827377688,23.52610565,202.53,202.52,0.063]
[1738827378099,28.46360565,202.53,202.52,0.063]
[1738827378485,22.39310565,202.53,202.52,0.063]
[1738827378692,9.35610523,202.53,202.52,0.063]
[1738827382028,22.76795376,202.53,202.52,0.063]
[1738827382229,31.11526529,202.53,202.52,0.063]
[1738827382910,30.11526529,202.53,202.52,0.063]
[1738827383807,36.05276529,202.53,202.52,0.063]
[1738827384196,73.47718621,202.53,202.52,0.063]
[1738827384404,43.41184853,202.47,202.46,0.03]
[1738827384624,52.76795376,202.47,202.46,0.03]
[1738827385511,57.70695376,202.47,202.46,0.03]
[1738827387836,57.70695376,202.47,202.42,0.11597045]
[1738827387837,50.12549,202.43,202.42,0.11597045]
[1738827388141,50.12549,202.43,202.37,0.063]
[1738827388142,43.41184853,202.38,202.37,0.063]
[1738827388324,40.09240523,202.38,202.37,0.063]
[1738827388621,39.35610523,202.38,202.37,0.063]
[1738827389211,52.76795376,202.38,202.37,0.063]
[1738827389924,57.70905376,202.38,202.37,0.063]
[1738827390130,63.86474376,202.38,202.37,0.0001]
[1738827390314,71.21205529,202.38,202.37,0.0001]
[1738827390521,80.20903645,202.38,202.37,0.0001]
[1738827390749,30.0,202.3,202.25,0.063]
[1738827390906,39.35610523,202.3,202.25,0.063]
[1738827391315,30.0,202.33,202.26,9.35610523]
[1738827392229,9.35610523,202.31,202.25,0.063]
[1738827392418,30.0,202.3,202.25,0.063]
[1738827392618,14.67492277,202.31,202.25,5.0073]
[1738827392818,44.67492277,202.33,202.25,19.68222277]
[1738827393129,44.67492277,202.33,202.26,14.67492277]
[1738827393525,14.67492277,202.32,202.25,14.73792277]
[1738827393715,14.67492277,202.32,202.25,0.063]
[1738827393917,30.0,202.29,202.25,0.063]
[1738827394515,44.67492277,202.32,202.25,0.063]
[1738827394733,30.0,202.32,202.25,14.73792277]
[1738827395024,30.0,202.32,202.28,14.67492277]
[1738827395615,30.0,202.32,202.27,14.67492277]
[1738827396829,30.0,202.32,202.27,19.61862277]
[1738827397626,30.0,202.32,202.28,14.67492277]
[1738827398605,30.0,202.32,202.3,14.67492277]
[1738827398810,44.67492277,202.37,202.3,14.67492277]
[1738827399011,30.0,202.34,202.3,14.67492277]
[1738827399211,44.67492277,202.37,202.3,14.67492277]
[1738827399445,30.03,202.37,202.3,14.67492277]
[1738827399613,30.03,202.37,202.31,14.67492277]
[1738827399814,30.03,202.37,202.33,14.67492277]
[1738827400313,30.03,202.37,202.32,14.67492277]
[1738827401228,0.03,202.37,202.33,14.67492277]
[1738827401636,0.03,202.37,202.35,14.67492277]
[1738827402211,0.03,202.37,202.34,14.67492277]
[1738827403059,0.03,202.37,202.36,14.92590277]
[1738827403353,0.03,202.37,202.36,154.46750277]
[1738827403648,0.03,202.37,202.36,154.34201277]
[1738827403850,0.03,202.37,202.36,154.46750277]
[1738827404427,30.0,202.47,202.37,0.25098]
[1738827404736,30.0,202.47,202.41,14.67492277]
[1738827404935,30.0,202.47,202.42,14.67492277]
[1738827405429,30.0,202.47,202.43,4.9399]
[1738827409146,30.0,202.47,202.41,14.67492277]
[1738827410021,44.67492277,202.5,202.43,14.67492277]
[1738827410242,20.0,202.47,202.42,14.67492277]
[1738827410833,20.0,202.47,202.41,14.92590277]
[1738827411025,20.0,202.47,202.42,14.67492277]
[1738827411226,20.03,202.47,202.43,4.9399]
[1738827413945,30.0,202.46,202.41,9.37620594]
[1738827414135,30.0,202.46,202.4,9.37620594]
[1738827414329,30.0,202.46,202.39,206.42159019]
[1738827414330,39.37620594,202.46,202.39,206.42159019]
[1738827414530,9.37620594,202.42,202.39,62.44538425]
[1738827414754,9.37620594,202.42,202.37,134.663]
[1738827415367,9.37620594,202.42,202.37,139.6043]
[1738827415572,39.37620594,202.43,202.37,0.063]
[1738827415885,9.37620594,202.42,202.37,0.063]
[1738827416473,9.37620594,202.42,202.37,5.0042]
[1738827416726,44.65767521,202.43,202.37,5.0042]
[1738827417384,44.65767521,202.43,202.37,19.66187521]
[1738827417385,30.0,202.43,202.37,19.66187521]
[1738827417563,44.65767521,202.43,202.37,5.0042]
[1738827420186,30.0,202.43,202.38,14.65767521]
[1738827420359,34.17814853,202.47,202.4,14.65767521]
[1738827420360,30.0,202.46,202.4,14.65767521]
[1738827421017,44.65767521,202.46,202.39,14.65767521]
[1738827421676,30.0,202.46,202.4,14.65767521]
[1738827421880,30.0,202.46,202.41,14.65767521]
[1738827422794,30.0,202.46,202.41,19.59797521]
[1738827423077,30.0,202.46,202.4,134.6]
[1738827423078,49.59687521,202.46,202.4,134.6]
[1738827425076,14.65767521,202.45,202.4,134.6]
[1738827425282,30.0,202.46,202.4,139.5406]
[1738827425753,30.0,202.46,202.4,154.19827521]
[1738827426353,30.0,202.46,202.4,19.59827521]
[1738827426981,44.65767521,202.46,202.4,4.9406]
[1738827427156,44.65767521,202.42,202.37,62.50838425]
[1738827427359,14.65767521,202.41,202.37,0.063]
[1738827427556,14.65767521,202.41,202.37,5.0044]
[1738827427756,44.65767521,202.42,202.37,5.0044]
[1738827428066,30.0,202.42,202.37,5.0044]
[1738827428267,30.0,202.45,202.39,14.90865521]
[1738827428478,30.0,202.45,202.38,14.65767521]
[1738827428995,30.0,202.45,202.39,14.65767521]
[1738827429205,30.0,202.45,202.39,19.59847521]
[1738827429494,30.0,202.45,202.39,4.9408]
[1738827429682,30.0,202.45,202.39,19.59847521]
[1738827430073,30.0,202.45,202.39,4.9408]
[1738827431496,0.03,202.47,202.42,14.65767521]
[1738827431778,0.03,202.47,202.43,14.65767521]
[1738827432654,30.0,202.49,202.44,4.9397]
[1738827432655,14.65767521,202.49,202.44,4.9397]
[1738827432855,30.0,202.5,202.44,4.9397]
[1738827433282,16.24347521,202.51,202.44,4.9397]
[1738827433580,16.24347521,202.51,202.44,19.59737521]
[1738827433958,0.03,202.53,202.47,14.65767521]
[1738827434768,0.03,202.53,202.47,19.59637521]
[1738827435781,0.03,202.53,202.46,4.9391]
[1738827435782,14.65767521,202.52,202.46,4.9391]
[1738827435959,14.65767521,202.51,202.44,139.5395]
[1738827436281,14.65767521,202.51,202.44,154.19717521]
[1738827436473,44.65767521,202.49,202.44,134.6]
[1738827436784,14.65767521,202.48,202.44,134.6]
[1738827437085,30.0,202.49,202.42,19.59787521]
[1738827438067,14.65767521,202.51,202.44,0.25098]
[1738827438264,44.65767521,202.52,202.44,14.90865521]
[1738827438459,14.65767521,202.51,202.44,14.90865521]
[1738827438664,9.37439992,202.51,202.44,0.25098]
[1738827439273,9.37439992,202.51,202.45,4.9394]
[1738827440287,39.37439992,202.52,202.45,4.9394]
[1738827440489,9.37439992,202.51,202.45,4.9394]
[1738827442770,9.37439992,202.5,202.45,4.9394]
[1738827442965,9.37439992,202.49,202.44,134.6]
[1738827443184,39.37439992,202.47,202.4,17.26529992]
[1738827443386,9.37439992,202.46,202.4,6.5671]
[1738827443873,9.37439992,202.45,202.4,4.9405]
[1738827444392,9.37439992,202.45,202.39,5.19188]
[1738827444578,9.37439992,202.45,202.39,139.79188]
[1738827444903,9.37439992,202.46,202.39,148.91529992]
[1738827445388,9.37439992,202.46,202.42,0.063]
[1738827445591,9.37439992,202.46,202.39,148.47829992]
[1738827446378,9.37439992,202.46,202.39,13.87829992]
[1738827447393,44.31349992,202.47,202.39,13.87829992]
[1738827448076,39.37439992,202.47,202.4,9.37439992]
[1738827448701,30.0,202.47,202.4,9.37439992]
[1738827449196,9.37439992,202.49,202.4,9.37439992]
[1738827449389,9.37439992,202.49,202.42,9.37439992]
[1738827450092,9.37439992,202.49,202.43,4.9399]
[1738827452696,9.37439992,202.46,202.39,144.09988992]
[1738827452990,39.37439992,202.47,202.4,0.25098]
[1738827453195,9.37439992,202.48,202.4,9.62537992]
[1738827454984,9.37439992,202.48,202.41,4.9404]
[1738827456019,30.0,202.47,202.4,9.37439992]
[1738827456196,9.37439992,202.46,202.4,4.9406]
[1738827466617,30.0,202.47,202.4,14.31499992]
[1738827468815,39.37439992,202.44,202.39,0.063]
[1738827469015,30.0,202.41,202.39,0.063]
[1738827474688,9.37439992,202.44,202.39,0.063]
[1738827476115,1.5495,202.47,202.4,9.37439992]
[1738827476313,20.0,202.45,202.4,9.37439992]
[1738827476520,20.0,202.45,202.39,9.43739992]
[1738827478319,20.0,202.45,202.39,14.37809992]
[1738827479820,20.0,202.45,202.39,148.97809992]
[1738827480029,15.86289992,202.47,202.4,9.37439992]
[1738827480030,9.40439992,202.47,202.4,9.37439992]
[1738827480228,0.03,202.47,202.41,9.37439992]
[1738827480391,0.03,202.47,202.43,9.37439992]
[1738827481219,20.03,202.47,202.42,9.37439992]
[1738827481633,0.03,202.47,202.43,14.31429992]
[1738827483696,0.03,202.47,202.44,9.37439992]
[1738827484020,0.03,202.47,202.46,9.37439992]
[1738827484730,0.03,202.47,202.46,9.62537992]
[1738827485212,0.03,202.47,202.46,144.35086992]
[1738827485803,0.03,202.47,202.46,149.16457992]
[1738827486210,0.03,202.47,202.46,134.6]
[1738827486499,0.03,202.47,202.42,9.37439992]
[1738827486500,9.40439992,202.47,202.42,139.54]
[1738827487107,9.37439992,202.45,202.42,134.6]
[1738827487901,9.37439992,202.45,202.39,0.063]
[1738827488105,44.31389992,202.45,202.39,0.063]
[1738827488538,9.37439992,202.44,202.39,0.063]
[1738827490329,9.37439992,202.45,202.39,0.063]
[1738827490734,13.07439992,202.46,202.39,0.31398]
[1738827491243,3.7,202.46,202.4,9.37439992]
[1738827491649,3.7,202.46,202.4,143.97439992]
[1738827492027,3.7,202.46,202.41,4.9404]
[1738827494823,9.37439992,202.45,202.39,134.663]
[1738827495140,9.37439992,202.43,202.39,0.063]
[1738827496622,30.0,202.45,202.39,0.063]
[1738827496623,39.37439992,202.45,202.39,0.063]
[1738827497143,44.31389992,202.45,202.39,0.063]
[1738827497541,39.37439992,202.45,202.39,0.063]
[1738827497952,30.0,202.45,202.39,9.43739992]
[1738827498151,0.03,202.47,202.41,9.37439992]
[1738827498345,20.0,202.45,202.41,9.37439992]
[1738827500167,20.0,202.45,202.4,4.9405]
[1738827502439,20.0,202.45,202.39,9.43739992]
[1738827502641,50.0,202.45,202.39,9.43739992]
[1738827502841,64.31379992,202.45,202.39,0.063]
[1738827504973,50.0,202.45,202.39,14.37829992]
[1738827505961,50.0,202.45,202.41,9.37439992]
[1738827505962,20.0,202.45,202.41,9.37439992]
[1738827506572,0.03,202.45,202.43,9.37439992]
[1738827506738,0.03,202.45,202.41,14.31479992]
[1738827506940,0.03,202.45,202.41,9.37439992]
[1738827507973,0.03,202.45,202.4,4.9406]
[1738827510877,0.03,202.45,202.41,9.37439992]
[1738827511557,0.03,202.45,202.39,9.43739992]
[1738827512056,20.03,202.45,202.39,9.43739992]
[1738827512974,20.03,202.45,202.4,4.9407]
[1738827517672,20.0,202.44,202.4,4.9407]
[1738827519265,20.0,202.44,202.39,0.063]
[1738827519773,20.0,202.42,202.39,0.063]
[1738827522877,20.0,202.42,202.39,9.43739992]
[1738827523557,20.03,202.45,202.41,9.37439992]
[1738827523773,20.03,202.45,202.4,9.37439992]
[1738827524980,20.03,202.45,202.4,14.31499992]
[1738827525716,20.03,202.45,202.42,9.37439992]
[1738827526299,0.03,202.45,202.42,9.37439992]
[1738827527285,0.03,202.45,202.42,14.31439992]
[1738827530982,0.03,202.45,202.43,9.37439992]
[1738827531484,0.03,202.45,202.43,143.97439992]
[1738827531677,0.03,202.45,202.44,0.25098]
[1738827531885,0.03,202.45,202.44,144.22537992]
[1738827532085,0.03,202.45,202.44,143.97439992]
[1738827533392,0.03,202.45,202.44,148.91409992]
[1738827533678,0.03,202.45,202.44,149.16507992]
[1738827538693,0.03,202.45,202.44,162.82790845]
[1738827539198,0.03,202.45,202.44,149.29056992]
[1738827540293,0.03,202.45,202.44,143.97439992]
[1738827540476,0.03,202.45,202.44,134.6]
[1738827540666,0.03,202.45,202.44,143.97439992]
[1738827542138,0.03,202.45,202.44,148.91409992]
[1738827542343,0.03,202.45,202.44,14.31409992]
[1738827543003,0.03,202.45,202.44,14.56507992]
[1738827544014,0.03,202.45,202.44,14.31409992]
[1738827544306,0.03,202.45,202.44,9.37439992]
[1738827547268,0.03,202.45,202.43,4.9399]
[1738827547710,0.03,202.45,202.44,9.37439992]
[1738827548086,0.03,202.45,202.44,14.31409992]
[1738827548995,0.03,202.45,202.44,14.56507992]
[1738827549176,0.03,202.45,202.44,15.30586649]
[1738827549369,0.03,202.45,202.44,15.43135649]
[1738827550611,0.03,202.45,202.44,163.56869502]
[1738827550911,0.03,202.45,202.44,162.82790845]
[1738827551899,0.03,202.45,202.44,225.2732927]